lending/lending_fUSD_20250121
["ID","MTS","AMOUNT","RATE_DAILY","PERIOD"]
[349891057,1737480641700,-270.35977965,0.00019452,2]
[349891058,1737480641709,-784.68,0.00019452,2]
[349891059,1737480641718,-887.45,0.00019452,2]
[349891060,1737480641728,-172.62322035,0.00019452,2]
[349891061,1737480641739,-330.08677965,0.00019452,2]
[349891062,1737480641749,-49.19116789,0.00019452,2]
[349891063,1737480641760,-528.1,0.00019452,2]
[349891072,1737480646278,-528.45,0.00019178,2]
[349891073,1737480646287,-500.0,0.00019178,2]
[349891074,1737480646297,-500.0,0.00019178,2]
[349891075,1737480646311,-71.78716114,0.00019178,2]
[349891077,1737480755691,6693.77790587,0.00022,35]
[349891078,1737480879354,155.34,0.00010137,2]
[349891082,1737481577893,900.0,0.00024,120]
[349891094,1737481831486,-328.36509196,0.00016146,2]
[349891095,1737481831498,-105.82490804,0.00016146,2]
[349891096,1737481831507,-155.34,0.00017184,2]
[349891097,1737481831516,-369.42662419,0.00017644,2]
[349891098,1737481831527,-130.57337581,0.00017644,2]
[349891099,1737481831536,-830.65962419,0.0001812,2]
[349891100,1737481831695,-169.34037581,0.0001812,2]
[349891101,1737481831705,-233.21,0.00018163,2]
[349891102,1737481831714,-251.66,0.00018166,2]
[349891103,1737481831723,-153.95,0.00018174,30]
[349891104,1737481831734,-434.19,0.0001841,2]
[349891105,1737481831744,-176.89,0.00018493,2]
[349891106,1737481831753,-165.23,0.00018525,2]
[349891107,1737481831764,-1546.22,0.00018555,2]
[349891108,1737481831773,-233.21,0.00018835,2]
[349891109,1737481831783,-211.87607302,0.000189,2]
[349891110,1737481831792,-250.0,0.00018943,2]
[349891111,1737481831803,-3409.099264,0.00018964,2]
[349891112,1737481831812,-150.0,0.00018966,2]
[349891113,1737481831822,-298.01,0.00018966,2]
[349891114,1737481831833,-298.01,0.00018966,2]
[349891115,1737481831843,-298.01,0.00018966,2]
[349891116,1737481831853,-298.01,0.00018966,2]
[349891117,1737481831862,-298.01,0.00018966,2]
[349891118,1737481831871,-981.79,0.00018966,2]
[349891119,1737481831882,-298.01,0.00018966,2]
[349891120,1737481831891,-981.79,0.00018966,2]
[349891121,1737481831900,-298.01,0.00018966,2]
[349891122,1737481831909,-150.0,0.00018966,2]
[349891123,1737481831918,-114773.95261494,0.00019,2]
[349891124,1737481831930,-2200.29136741,0.00019,2]
[349891125,1737481831941,-423.83,0.00019,2]
[349891126,1737481831953,-671.82434,0.00019,2]
[349891131,1737481837491,-19628.3400076,0.00019,2]
[349891132,1737481837501,-943.052,0.00019,2]
[349891133,1737481837513,-464.70243438,0.00019,2]
[349891134,1737481837525,-211.87607278,0.00019003,2]
[349891135,1737481837535,-4199.3131,0.00019051,2]
[349891136,1737481837546,-1464.0,0.00019064,2]
[349891137,1737481837557,-2287.35429345,0.00019078,2]
[349891138,1737481837567,-5000.0,0.00019078,2]
[349891139,1737481837576,-298.01,0.00019078,2]
[349891140,1737481837589,-231.56,0.00019078,2]
[349891141,1737481837599,-211.87607278,0.00019107,2]
[349891142,1737481837608,-500.0,0.00019178,2]
[349891143,1737481837617,-500.0,0.00019178,2]
[349891144,1737481837627,-500.0,0.00019178,2]
[349891145,1737481837637,-505.50952996,0.00019178,2]
[349891146,1737481837647,-500.94,0.00019178,2]
[349891147,1737481837657,-500.0,0.00019178,2]
[349891148,1737481837667,-500.0,0.00019178,2]
[349891149,1737481837681,-500.0,0.00019178,2]
[349891150,1737481837690,-500.0,0.00019178,2]
[349891151,1737481837701,-500.0,0.00019178,2]
[349891152,1737481837710,-521.04430128,0.00019178,2]
[349891153,1737481837721,-500.0,0.00019178,2]
[349891154,1737481837731,-500.0,0.00019178,2]
[349891155,1737481837741,-500.0,0.00019178,2]
[349891156,1737481837752,-550.1486714,0.00019178,2]
[349891157,1737481837762,-500.0,0.00019178,2]
[349891158,1737481837771,-465.90971358,0.00019178,2]
[349891159,1737481837780,-500.0,0.00019178,2]
[349891160,1737481837790,-501.08029924,0.00019178,2]
[349891161,1737481837799,-500.0,0.00019178,2]
[349891162,1737481837808,-500.0,0.00019178,2]
[349891163,1737481837818,-500.0,0.00019178,2]
[349891164,1737481837828,-602.69669738,0.00019178,2]
[349891165,1737481837839,-500.0,0.00019178,2]
[349891166,1737481837848,-500.0,0.00019178,2]
[349891167,1737481837858,-500.0,0.00019178,2]
[349891168,1737481837867,-500.0,0.00019178,2]
[349891169,1737481837877,-500.0,0.00019178,2]
[349891170,1737481837887,-500.0,0.00019178,2]
[349891171,1737481837896,-500.0,0.00019178,2]
[349891172,1737481837906,-500.0,0.00019178,2]
[349891173,1737481837916,-500.0,0.00019178,2]
[349891174,1737481837925,-500.0,0.00019178,2]
[349891175,1737481837935,-500.0,0.00019178,2]
[349891176,1737481838148,-500.0,0.00019178,2]
[349891177,1737481838158,-500.0,0.00019178,2]
[349891178,1737481838168,-500.0,0.00019178,2]
[349891179,1737481838179,-500.0,0.00019178,2]
[349891180,1737481838191,-500.0,0.00019178,2]
[349891181,1737481838202,-500.0,0.00019178,2]
[349891182,1737481838212,-500.0,0.00019178,2]
[349891183,1737481838223,-269.58350811,0.00019178,2]
[349891184,1737481838234,-500.0,0.00019178,2]
[349891185,1737481838244,-500.0,0.00019178,2]
[349891186,1737481838256,-645.14632383,0.00019178,2]
[349891187,1737481838268,-179.65627286,0.00019178,2]
[349891188,1737481838279,-500.0,0.00019178,2]
[349891189,1737481838290,-228.68978383,0.00019178,2]
[349891190,1737481838301,-500.0,0.00019178,2]
[349891191,1737481838312,-500.0,0.00019178,2]
[349891192,1737481838324,-500.0,0.00019178,2]
[349891193,1737481838338,-500.0,0.00019178,2]
[349891194,1737481838351,-500.0,0.00019178,2]
[349891195,1737481838362,-500.0,0.00019178,2]
[349891196,1737481838375,-500.0,0.00019178,2]
[349891197,1737481838386,-500.0,0.00019178,2]
[349891198,1737481838396,-503.44502373,0.00019178,2]
[349891199,1737481838406,-500.0,0.00019178,2]
[349891200,1737481838417,-500.0,0.00019178,2]
[349891201,1737481838428,-500.0,0.00019178,2]
[349891202,1737481838438,-500.0,0.00019178,2]
[349891203,1737481838449,-500.0,0.00019178,2]
[349891204,1737481838459,-500.0,0.00019178,2]
[349891205,1737481838470,-500.0,0.00019178,2]
[349891206,1737481838481,-500.0,0.00019178,2]
[349891207,1737481838491,-500.0,0.00019178,2]
[349891208,1737481838501,-500.0,0.00019178,2]
[349891209,1737481838511,-500.0,0.00019178,2]
[349891210,1737481838522,-500.0,0.00019178,2]
[349891211,1737481838533,-500.0,0.00019178,2]
[349891212,1737481838543,-500.0,0.00019178,2]
[349891213,1737481838553,-500.0,0.00019178,2]
[349891214,1737481838563,-500.0,0.00019178,2]
[349891215,1737481838573,-500.0,0.00019178,2]
[349891216,1737481838586,-500.0,0.00019178,2]
[349891217,1737481838598,-500.0,0.00019178,2]
[349891218,1737481838607,-500.0,0.00019178,2]
[349891219,1737481838617,-500.0,0.00019178,2]
[349891220,1737481838627,-500.0,0.00019178,2]
[349891221,1737481838637,-500.0,0.00019178,2]
[349891222,1737481838646,-362.87128297,0.00019178,2]
[349891223,1737481838656,-500.0,0.00019178,2]
[349891224,1737481838665,-500.0,0.00019178,2]
[349891225,1737481838676,-500.0,0.00019178,2]
[349891226,1737481838688,-500.0,0.00019178,2]
[349891227,1737481838698,-500.0,0.00019178,2]
[349891228,1737481838708,-601.85862202,0.00019178,2]
[349891229,1737481838718,-500.0,0.00019178,2]
[349891230,1737481838729,-500.0,0.00019178,2]
[349891231,1737481838740,-500.0,0.00019178,2]
[349891232,1737481838753,-500.0,0.00019178,2]
[349891233,1737481838764,-500.0,0.00019178,2]
[349891234,1737481838775,-500.0,0.00019178,2]
[349891235,1737481838786,-500.0,0.00019178,2]
[349891236,1737481838796,-500.0,0.00019178,2]
[349891237,1737481838805,-500.0,0.00019178,2]
[349891238,1737481838815,-510.01,0.00019178,2]
[349891239,1737481838825,-500.0,0.00019178,2]
[349891240,1737481838837,-500.0,0.00019178,2]
[349891241,1737481838847,-500.0,0.00019178,2]
[349891242,1737481838857,-500.0,0.00019178,2]
[349891243,1737481838867,-500.0,0.00019178,2]
[349891244,1737481838877,-500.0,0.00019178,2]
[349891245,1737481838888,-500.0,0.00019178,2]
[349891246,1737481838897,-221.63,0.00019178,2]
[349891247,1737481838906,-534.82,0.00019178,2]
[349891248,1737481838916,-500.0,0.00019178,2]
[349891249,1737481838926,-500.0,0.00019178,2]
[349891250,1737481838936,-500.0,0.00019178,2]
[349891251,1737481838946,-500.0,0.00019178,2]
[349891252,1737481838956,-500.0,0.00019178,2]
[349891253,1737481838965,-500.0,0.00019178,2]
[349891254,1737481838975,-500.0,0.00019178,2]
[349891255,1737481838985,-500.0,0.00019178,2]
[349891256,1737481838995,-500.0,0.00019178,2]
[349891257,1737481839005,-500.0,0.00019178,2]
[349891258,1737481839015,-500.0,0.00019178,2]
[349891259,1737481839024,-500.0,0.00019178,2]
[349891260,1737481839034,-500.0,0.00019178,2]
[349891261,1737481839043,-599.42482127,0.00019178,2]
[349891262,1737481839053,-500.0,0.00019178,2]
[349891263,1737481839063,-541.823232,0.00019178,2]
[349891264,1737481839073,-500.0,0.00019178,2]
[349891265,1737481839083,-500.0,0.00019178,2]
[349891266,1737481839096,-500.0,0.00019178,2]
[349891267,1737481839105,-500.0,0.00019178,2]
[349891268,1737481839115,-500.0,0.00019178,2]
[349891269,1737481839125,-435.496355,0.00019178,2]
[349891270,1737481839134,-500.0,0.00019178,2]
[349891271,1737481839144,-168.57,0.00019178,2]
[349891272,1737481839153,-500.0,0.00019178,2]
[349891273,1737481839163,-500.0,0.00019178,2]
[349891274,1737481839173,-177.36878755,0.00019178,2]
[349891276,1737481839184,-500.0,0.00019178,2]
[349891278,1737481839194,-500.0,0.00019178,2]
[349891280,1737481839203,-500.0,0.00019178,2]
[349891282,1737481839213,-500.0,0.00019178,2]
[349891284,1737481839223,-500.0,0.00019178,2]
[349891286,1737481839233,-500.0,0.00019178,2]
[349891288,1737481839243,-500.0,0.00019178,2]
[349891290,1737481839252,-500.0,0.00019178,2]
[349891292,1737481839262,-538.36,0.00019178,2]
[349891294,1737481839272,-500.0,0.00019178,2]
[349891296,1737481839282,-500.0,0.00019178,2]
[349891298,1737481839292,-500.0,0.00019178,2]
[349891300,1737481839303,-500.0,0.00019178,2]
[349891302,1737481839313,-500.0,0.00019178,2]
[349891304,1737481839323,-500.0,0.00019178,2]
[349891306,1737481839333,-500.0,0.00019178,2]
[349891308,1737481839345,-500.0,0.00019178,2]
[349891310,1737481839355,-500.0,0.00019178,2]
[349891313,1737481839364,-500.0,0.00019178,2]
[349891315,1737481839373,-500.0,0.00019178,2]
[349891318,1737481839383,-500.0,0.00019178,2]
[349891321,1737481839393,-500.0,0.00019178,2]
[349891324,1737481839403,-500.0,0.00019178,2]
[349891327,1737481839412,-500.0,0.00019178,2]
[349891329,1737481839422,-500.0,0.00019178,2]
[349891331,1737481839432,-500.0,0.00019178,2]
[349891333,1737481839441,-502.70225883,0.00019178,2]
[349891335,1737481839451,-500.0,0.00019178,2]
[349891337,1737481839461,-500.0,0.00019178,2]
[349891339,1737481839472,-500.0,0.00019178,2]
[349891341,1737481839481,-174.662592,0.00019178,2]
[349891343,1737481839490,-500.0,0.00019178,2]
[349891344,1737481839500,-500.73779574,0.00019178,2]
[349891346,1737481839510,-500.0,0.00019178,2]
[349891348,1737481839519,-500.0,0.00019178,2]
[349891350,1737481839528,-500.0,0.00019178,2]
[349891352,1737481839537,-500.2772579,0.00019178,2]
[349891354,1737481839548,-500.0,0.00019178,2]
[349891356,1737481839557,-500.0,0.00019178,2]
[349891357,1737481839567,-541.354827,0.00019178,2]
[349891358,1737481839577,-500.0,0.00019178,2]
[349891359,1737481839592,-500.0,0.00019178,2]
[349891360,1737481839603,-632.13817176,0.00019178,2]
[349891361,1737481839613,-500.0,0.00019178,2]
[349891362,1737481839623,-500.0,0.00019178,2]
[349891363,1737481839634,-500.0,0.00019178,2]
[349891364,1737481839643,-500.0,0.00019178,2]
[349891365,1737481839653,-500.0,0.00019178,2]
[349891366,1737481839663,-504.33418568,0.00019178,2]
[349891367,1737481839674,-500.0,0.00019178,2]
[349891368,1737481839685,-500.0,0.00019178,2]
[349891369,1737481839695,-500.0,0.00019178,2]
[349891370,1737481839705,-500.0,0.00019178,2]
[349891371,1737481839715,-500.0,0.00019178,2]
[349891372,1737481839725,-501.36850009,0.00019178,2]
[349891373,1737481839735,-500.0,0.00019178,2]
[349891374,1737481839746,-500.0,0.00019178,2]
[349891375,1737481839756,-500.0,0.00019178,2]
[349891376,1737481839767,-151.997447,0.00019178,2]
[349891377,1737481839779,-500.0,0.00019178,2]
[349891378,1737481839790,-502.22732879,0.00019178,2]
[349891379,1737481839800,-511.98156666,0.00019178,2]
[349891380,1737481839810,-500.0,0.00019178,2]
[349891381,1737481839820,-521.17323948,0.00019178,2]
[349891382,1737481839830,-500.0,0.00019178,2]
[349891383,1737481839843,-500.0,0.00019178,2]
[349891384,1737481839852,-500.0,0.00019178,2]
[349891385,1737481839862,-500.0,0.00019178,2]
[349891386,1737481839873,-500.0,0.00019178,2]
[349891387,1737481839883,-500.0,0.00019178,2]
[349891388,1737481839897,-523.71,0.00019178,2]
[349891389,1737481839909,-500.0,0.00019178,2]
[349891390,1737481839919,-500.0,0.00019178,2]
[349891391,1737481839928,-500.0,0.00019178,2]
[349891392,1737481839938,-500.0,0.00019178,2]
[349891393,1737481839946,-500.0,0.00019178,2]
[349891394,1737481839956,-249.342076,0.00019178,2]
[349891395,1737481839965,-500.0,0.00019178,2]
[349891396,1737481839974,-500.0,0.00019178,2]
[349891397,1737481839983,-500.0,0.00019178,2]
[349891398,1737481839993,-500.0,0.00019178,2]
[349891399,1737481840002,-500.0,0.00019178,2]
[349891400,1737481840012,-500.0,0.00019178,2]
[349891401,1737481840022,-500.0,0.00019178,2]
[349891402,1737481840032,-500.0,0.00019178,2]
[349891403,1737481840043,-968.82,0.00019178,2]
[349891404,1737481840052,-500.0,0.00019178,2]
[349891405,1737481840062,-500.0,0.00019178,2]
[349891406,1737481840071,-503.68962632,0.00019178,2]
[349891407,1737481840081,-268.22849662,0.00019178,2]
[349891408,1737481840095,-500.0,0.00019178,2]
[349891409,1737481840105,-505.73534891,0.00019178,2]
[349891410,1737481840114,-517.1690949,0.00019178,2]
[349891411,1737481840123,-500.0,0.00019178,2]
[349891412,1737481840133,-883.82,0.00019178,2]
[349891413,1737481840142,-458.14512055,0.00019178,2]
[349891414,1737481840151,-500.0,0.00019178,2]
[349891415,1737481840160,-502.69461318,0.00019178,2]
[349891416,1737481840169,-574.82,0.00019178,2]
[349891417,1737481840179,-500.0,0.00019178,2]
[349891418,1737481840189,-504.84562988,0.00019178,2]
[349891419,1737481840198,-500.0,0.00019178,2]
[349891420,1737481840207,-872.29,0.00019178,2]
[349891421,1737481840216,-500.0,0.00019178,2]
[349891422,1737481840226,-509.56564344,0.00019178,2]
[349891423,1737481840235,-500.0,0.00019178,2]
[349891424,1737481840245,-500.0,0.00019178,2]
[349891425,1737481840255,-500.0,0.00019178,2]
[349891426,1737481840264,-591.16,0.00019178,2]
[349891427,1737481840273,-500.0,0.00019178,2]
[349891428,1737481840283,-1949.9,0.00019178,2]
[349891429,1737481840293,-500.0,0.00019178,2]
[349891430,1737481840303,-500.0,0.00019178,2]
[349891431,1737481840313,-2083.72,0.00019178,2]
[349891432,1737481840323,-1234.26,0.00019178,2]
[349891433,1737481840333,-500.0,0.00019178,2]
[349891434,1737481840343,-500.0,0.00019178,2]
[349891435,1737481840353,-500.0,0.00019178,2]
[349891436,1737481840363,-850.27,0.00019178,2]
[349891437,1737481840373,-467.41042999,0.00019178,2]
[349891438,1737481840382,-638.37,0.00019178,2]
[349891439,1737481840392,-516.47627339,0.00019178,2]
[349891440,1737481840401,-500.0,0.00019178,2]
[349891441,1737481840411,-966.51,0.00019178,2]
[349891442,1737481840421,-500.0,0.00019178,2]
[349891443,1737481840430,-393.23509614,0.00019178,2]
[349891444,1737481840439,-500.0,0.00019178,2]
[349891445,1737481840449,-500.33594404,0.00019178,2]
[349891446,1737481840458,-500.0,0.00019178,2]
[349891447,1737481840468,-1807.38,0.00019178,2]
[349891448,1737481840478,-500.0,0.00019178,2]
[349891449,1737481840488,-500.0,0.00019178,2]
[349891450,1737481840498,-501.17025106,0.00019178,2]
[349891451,1737481840507,-1229.07,0.00019178,2]
[349891452,1737481840517,-398.33836089,0.00019178,2]
[349891453,1737481840527,-200.0,0.00019178,2]
[349891454,1737481840536,-500.0,0.00019178,2]
[349891455,1737481840545,-983.11,0.00019178,2]
[349891456,1737481840555,-1007.18,0.00019178,2]
[349891457,1737481840564,-500.0,0.00019178,2]
[349891458,1737481840574,-500.0,0.00019178,2]
[349891459,1737481840583,-500.0,0.00019178,2]
[349891460,1737481840592,-500.0,0.00019178,2]
[349891461,1737481840602,-500.0,0.00019178,2]
[349891462,1737481840612,-500.0,0.00019178,2]
[349891463,1737481840621,-646.36,0.00019178,2]
[349891464,1737481840630,-500.0,0.00019178,2]
[349891465,1737481840640,-500.0,0.00019178,2]
[349891466,1737481840649,-552.58,0.00019178,2]
[349891467,1737481840658,-500.0,0.00019178,2]
[349891468,1737481840668,-500.0,0.00019178,2]
[349891469,1737481840681,-1758.1,0.00019178,2]
[349891470,1737481840690,-500.0,0.00019178,2]
[349891471,1737481840700,-500.0,0.00019178,2]
[349891472,1737481840710,-758.32,0.00019178,2]
[349891473,1737481840721,-500.0,0.00019178,2]
[349891474,1737481840730,-500.0,0.00019178,2]
[349891475,1737481840740,-500.0,0.00019178,2]
[349891476,1737481840750,-500.0,0.00019178,2]
[349891477,1737481840760,-425.41004041,0.00019178,2]
[349891478,1737481840769,-500.0,0.00019178,2]
[349891479,1737481840779,-500.0,0.00019178,2]
[349891480,1737481840788,-2087.54,0.00019178,2]
[349891481,1737481840798,-552.04,0.00019178,2]
[349891482,1737481840807,-500.0,0.00019178,2]
[349891483,1737481840817,-500.0,0.00019178,2]
[349891484,1737481840826,-503.82017652,0.00019178,2]
[349891485,1737481840836,-500.0,0.00019178,2]
[349891486,1737481840845,-500.0,0.00019178,2]
[349891487,1737481840854,-500.0,0.00019178,2]
[349891488,1737481840864,-500.0,0.00019178,2]
[349891489,1737481840873,-503.54310683,0.00019178,2]
[349891490,1737481840882,-814.49,0.00019178,2]
[349891491,1737481840891,-692.57,0.00019178,2]
[349891492,1737481840900,-500.0,0.00019178,2]
[349891493,1737481840910,-637.70518561,0.00019178,2]
[349891494,1737481840919,-500.0,0.00019178,2]
[349891495,1737481840928,-500.0,0.00019178,2]
[349891496,1737481840938,-500.0,0.00019178,2]
[349891497,1737481840947,-2087.16,0.00019178,2]
[349891498,1737481840956,-863.83,0.00019178,2]
[349891499,1737481840967,-500.0,0.00019178,2]
[349891500,1737481840976,-500.0,0.00019178,2]
[349891501,1737481840986,-500.0,0.00019178,2]
[349891502,1737481840995,-777.16,0.00019178,2]
[349891503,1737481841006,-500.0,0.00019178,2]
[349891504,1737481841015,-500.0,0.00019178,2]
[349891505,1737481841025,-620.39,0.00019178,2]
[349891506,1737481841034,-892.77,0.00019178,2]
[349891507,1737481841044,-639.39970319,0.00019178,2]
[349891508,1737481841053,-1030.47,0.00019178,2]
[349891509,1737481841063,-500.0,0.00019178,2]
[349891510,1737481841073,-503.20559654,0.00019178,2]
[349891511,1737481841083,-506.8748005,0.00019178,2]
[349891512,1737481841095,-573.28,0.00019178,2]
[349891513,1737481841104,-500.0,0.00019178,2]
[349891514,1737481841114,-531.83,0.00019178,2]
[349891515,1737481841124,-500.0,0.00019178,2]
[349891516,1737481841133,-1860.97,0.00019178,2]
[349891517,1737481841143,-500.0,0.00019178,2]
[349891518,1737481841152,-1428.91,0.00019178,2]
[349891519,1737481841162,-1602.47,0.00019178,2]
[349891520,1737481841171,-504.38189766,0.00019178,2]
[349891521,1737481841180,-681.59,0.00019178,2]
[349891522,1737481841190,-992.99,0.00019178,2]
[349891523,1737481841199,-500.0,0.00019178,2]
[349891524,1737481841208,-615.77410835,0.00019178,2]
[349891525,1737481841217,-500.0,0.00019178,2]
[349891526,1737481841227,-554.72,0.00019178,2]
[349891527,1737481841236,-500.0,0.00019178,2]
[349891528,1737481841246,-860.54,0.00019178,2]
[349891529,1737481841255,-512.30579902,0.00019178,2]
[349891530,1737481841264,-500.0,0.00019178,2]
[349891531,1737481841274,-500.0,0.00019178,2]
[349891532,1737481841283,-939.91,0.00019178,2]
[349891533,1737481841292,-500.0,0.00019178,2]
[349891534,1737481841301,-500.0,0.00019178,2]
[349891535,1737481841311,-431.71750236,0.00019178,2]
[349891536,1737481841320,-2768.13,0.00019178,2]
[349891537,1737481841329,-1656.07,0.00019178,2]
[349891538,1737481841339,-500.0,0.00019178,2]
[349891539,1737481841350,-500.0,0.00019178,2]
[349891540,1737481841359,-630.78,0.00019178,2]
[349891541,1737481841368,-500.0,0.00019178,2]
[349891542,1737481841377,-500.0,0.00019178,2]
[349891543,1737481841387,-500.0,0.00019178,2]
[349891544,1737481841397,-500.0,0.00019178,2]
[349891545,1737481841407,-500.0,0.00019178,2]
[349891546,1737481841416,-1879.4,0.00019178,2]
[349891547,1737481841426,-500.0,0.00019178,2]
[349891548,1737481841435,-1189.73,0.00019178,2]
[349891549,1737481841444,-1344.96,0.00019178,2]
[349891550,1737481841453,-1273.53,0.00019178,2]
[349891551,1737481841463,-915.46,0.00019178,2]
[349891552,1737481841473,-611.0,0.00019178,2]
[349891553,1737481841482,-500.0,0.00019178,2]
[349891554,1737481841491,-500.0,0.00019178,2]
[349891555,1737481841500,-1205.37,0.00019178,2]
[349891556,1737481841509,-500.0,0.00019178,2]
[349891557,1737481841519,-815.77,0.00019178,2]
[349891558,1737481841528,-1101.88,0.00019178,2]
[349891559,1737481841538,-500.0,0.00019178,2]
[349891560,1737481841547,-1058.59,0.00019178,2]
[349891561,1737481841556,-903.51,0.00019178,2]
[349891562,1737481841565,-500.0,0.00019178,2]
[349891563,1737481841574,-249.342067,0.00019178,2]
[349891564,1737481841584,-500.0,0.00019178,2]
[349891565,1737481841595,-1120.5,0.00019178,2]
[349891566,1737481841603,-500.0,0.00019178,2]
[349891567,1737481841613,-1815.36,0.00019178,2]
[349891568,1737481841622,-500.0,0.00019178,2]
[349891569,1737481841632,-2428.83,0.00019178,2]
[349891570,1737481841641,-500.0,0.00019178,2]
[349891571,1737481841651,-500.0,0.00019178,2]
[349891572,1737481841660,-2074.92,0.00019178,2]
[349891573,1737481841670,-4234.98,0.00019178,2]
[349891574,1737481841680,-500.0,0.00019178,2]
[349891575,1737481841694,-500.0,0.00019178,2]
[349891576,1737481841703,-500.0,0.00019178,2]
[349891577,1737481841712,-758.4,0.00019178,2]
[349891578,1737481841722,-885.5,0.00019178,2]
[349891579,1737481841732,-500.0,0.00019178,2]
[349891580,1737481841744,-969.51,0.00019178,2]
[349891581,1737481841755,-500.0,0.00019178,2]
[349891582,1737481841765,-500.0,0.00019178,2]
[349891583,1737481841775,-500.0,0.00019178,2]
[349891584,1737481841784,-500.0,0.00019178,2]
[349891585,1737481841794,-500.0,0.00019178,2]
[349891586,1737481841803,-500.0,0.00019178,2]
[349891587,1737481841812,-500.0,0.00019178,2]
[349891588,1737481841822,-678.61,0.00019178,2]
[349891589,1737481841831,-500.0,0.00019178,2]
[349891590,1737481841842,-1307.89,0.00019178,2]
[349891591,1737481841851,-500.0,0.00019178,2]
[349891592,1737481841860,-508.79300778,0.00019178,2]
[349891593,1737481841869,-500.0,0.00019178,2]
[349891594,1737481841879,-500.0,0.00019178,2]
[349891595,1737481841888,-500.0,0.00019178,2]
[349891596,1737481841897,-151.997446,0.00019178,2]
[349891597,1737481841906,-500.0,0.00019178,2]
[349891598,1737481841915,-655.48,0.00019178,2]
[349891599,1737481841924,-500.0,0.00019178,2]
[349891600,1737481841933,-3654.26,0.00019178,2]
[349891601,1737481841942,-500.0,0.00019178,2]
[349891602,1737481841952,-500.0,0.00019178,2]
[349891603,1737481841961,-1432.91,0.00019178,2]
[349891604,1737481841970,-500.0,0.00019178,2]
[349891605,1737481841979,-500.0,0.00019178,2]
[349891606,1737481841989,-500.0,0.00019178,2]
[349891607,1737481841999,-500.0,0.00019178,2]
[349891608,1737481842008,-711.72,0.00019178,2]
[349891609,1737481842018,-1306.74,0.00019178,2]
[349891610,1737481842027,-500.0,0.00019178,2]
[349891611,1737481842036,-259.06821133,0.00019178,2]
[349891612,1737481842046,-500.0,0.00019178,2]
[349891613,1737481842056,-1711.39,0.00019178,2]
[349891614,1737481842065,-500.0,0.00019178,2]
[349891615,1737481842074,-500.0,0.00019178,2]
[349891616,1737481842084,-500.0,0.00019178,2]
[349891617,1737481842096,-503.78,0.00019178,2]
[349891618,1737481842106,-500.0,0.00019178,2]
[349891619,1737481842117,-500.0,0.00019178,2]
[349891620,1737481842126,-715.38,0.00019178,2]
[349891621,1737481842137,-551.4343692,0.00019178,2]
[349891622,1737481842148,-500.0,0.00019178,2]
[349891623,1737481842158,-500.0,0.00019178,2]
[349891626,1737481842168,-500.0,0.00019178,2]
[349891628,1737481842354,-1372.82,0.00019178,2]
[349891630,1737481842364,-500.0,0.00019178,2]